fUST/lending_fUST_20240718
["ID","MTS","AMOUNT","RATE_DAILY","PERIOD"]
[332484270,1721242241664,-151.200201,0.00021817,2]
[332484271,1721242241676,-275.600216,0.00021817,2]
[332484272,1721242241685,-275.600216,0.00021817,2]
[332484273,1721242241694,-889.17383,0.00021817,2]
[332484274,1721242241703,-964.24819,0.00021817,2]
[332484275,1721242241713,-151.0,0.00021817,2]
[332484276,1721242241723,-889.17383,0.00021817,2]
[332484277,1721242241732,-964.24819,0.00021817,2]
[332484278,1721242241741,-151.0,0.00021817,2]
[332484279,1721242241751,-14579.2575307,0.00021817,3]
[332484280,1721242241760,-160.881812,0.00021827,2]
[332484281,1721242241769,-151.0,0.00021827,2]
[332484282,1721242241778,-151.0,0.00021827,2]
[332484283,1721242241787,-151.0,0.00021827,2]
[332484284,1721242241797,-278.669526,0.00021827,2]
[332484285,1721242241806,-151.0,0.00021827,2]
[332484286,1721242241815,-151.0,0.00021827,2]
[332484287,1721242241824,-151.0,0.00021827,2]
[332484288,1721242241834,-151.0,0.00021827,2]
[332484289,1721242241843,-151.0,0.00021827,2]
[332484290,1721242241853,-151.0,0.00021827,2]
[332484291,1721242241863,-3969.109396,0.00021827,2]
[332484292,1721242241875,-3969.109396,0.00021827,2]
[332484293,1721242241885,-151.0,0.00021827,2]
[332484294,1721242241896,-151.0,0.00021827,2]
[332484295,1721242241906,-184.28285,0.00021827,2]
[332484296,1721242241915,-184.28285,0.00021827,2]
[332484297,1721242241927,-151.0,0.00021827,2]
[332484298,1721242241936,-151.0,0.00021827,2]
[332484299,1721242241946,-1169.226776,0.00021827,2]
[332484300,1721242241955,-1169.226776,0.00021827,2]
[332484301,1721242241965,-151.0,0.00021827,2]
[332484302,1721242241976,-275.600216,0.00021827,2]
[332484303,1721242241987,-275.600216,0.00021827,2]
[332484304,1721242241998,-275.600216,0.00021827,2]
[332484305,1721242242009,-275.600216,0.00021827,2]
[332484306,1721242242020,-151.0,0.00021827,2]
[332484307,1721242242029,-151.0,0.00021827,2]
[332484308,1721242242039,-151.0,0.00021827,2]
[332484309,1721242242053,-151.0,0.00021827,2]
[332484310,1721242242062,-156.976629,0.00021827,2]
[332484311,1721242242072,-1472.82742,0.00021827,2]
[332484312,1721242242084,-1472.82742,0.00021827,2]
[332484313,1721242242094,-1472.82742,0.00021827,2]
[332484314,1721242242103,-1472.82742,0.00021827,2]
[332484315,1721242242113,-889.17383,0.00021827,2]
[332484316,1721242242124,-889.17383,0.00021827,2]
[332484317,1721242242134,-964.24819,0.00021827,2]
[332484318,1721242242144,-151.0,0.00021827,2]
[332484319,1721242242154,-964.24819,0.00021827,2]
[332484320,1721242242165,-151.0,0.00021827,2]
[332484321,1721242242176,-889.17383,0.00021827,2]
[332484322,1721242242188,-889.17383,0.00021827,2]
[332484323,1721242242200,-964.24819,0.00021827,2]
[332484324,1721242242211,-964.24819,0.00021827,2]
[332484325,1721242242221,-151.0,0.00021827,2]
[332484326,1721242242232,-151.0,0.00021827,2]
[332484327,1721242242242,-2248.51879704,0.00021827,2]
[332484328,1721242242252,-151.0,0.00021828,2]
[332484329,1721242242264,-151.0,0.00021828,2]
[332484330,1721242242274,-151.0,0.00021828,2]
[332484331,1721242242284,-151.0,0.00021828,2]
[332484332,1721242242294,-151.0,0.00021828,2]
[332484333,1721242242304,-151.0,0.00021828,2]
[332484334,1721242242315,-287.601663,0.00021828,2]
[332484335,1721242242326,-152.093835,0.00021828,2]
[332484336,1721242242336,-151.0,0.00021828,2]
[332484337,1721242242350,-151.0,0.00021828,2]
[332484338,1721242242360,-3969.109396,0.00021828,2]
[332484339,1721242242370,-3969.109396,0.00021828,2]
[332484340,1721242242382,-151.0,0.00021828,2]
[332484341,1721242242392,-151.0,0.00021828,2]
[332484342,1721242242403,-184.28285,0.00021828,2]
[332484343,1721242242414,-184.28285,0.00021828,2]
[332484344,1721242242431,-151.0,0.00021828,2]
[332484345,1721242242442,-151.0,0.00021828,2]
[332484346,1721242242454,-1169.226776,0.00021828,2]
[332484347,1721242242464,-1169.226776,0.00021828,2]
[332484348,1721242242475,-151.0,0.00021828,2]
[332484349,1721242242485,-275.600216,0.00021828,2]
[332484350,1721242242496,-275.600216,0.00021828,2]
[332484351,1721242242505,-151.0,0.00021828,2]
[332484352,1721242242516,-151.0,0.00021828,2]
[332484353,1721242242531,-151.0,0.00021828,2]
[332484354,1721242242541,-151.0,0.00021828,2]
[332484355,1721242242551,-1472.82742,0.00021828,2]
[332484356,1721242242562,-1472.82742,0.00021828,2]
[332484357,1721242242572,-1472.82742,0.00021828,2]
[332484358,1721242242583,-1472.82742,0.00021828,2]
[332484359,1721242242595,-889.17383,0.00021828,2]
[332484360,1721242242605,-889.17383,0.00021828,2]
[332484361,1721242242615,-964.24819,0.00021828,2]
[332484362,1721242242627,-151.0,0.00021828,2]
[332484363,1721242242636,-964.24819,0.00021828,2]
[332484364,1721242242646,-151.0,0.00021828,2]
[332484365,1721242242656,-889.17383,0.00021828,2]
[332484366,1721242242665,-889.17383308,0.00021828,2]
[332484367,1721242242676,-964.24819,0.00021828,2]
[332484368,1721242242685,-964.248186,0.00021828,2]
[332484369,1721242242695,-151.0,0.00021828,2]
[332484370,1721242242705,-151.0,0.00021828,2]
[332484371,1721242242717,-500.0,0.00021868,2]
[332484372,1721242242727,-204.43113703,0.00021868,2]
[332484373,1721242242737,-500.0,0.00021868,2]
[332484374,1721242242748,-338.8959211,0.00021868,2]
[332484375,1721242242758,-500.0,0.00021868,2]
[332484376,1721242242770,-500.0,0.00021868,2]
[332484377,1721242242782,-478.4050389,0.00021868,2]
[332484378,1721242242792,-500.0,0.00021868,2]
[332484379,1721242242801,-500.0,0.00021868,2]
[332484380,1721242242811,-500.0,0.00021868,2]
[332484381,1721242242822,-649.61440315,0.00021868,2]
[332484382,1721242242833,-500.0,0.00021868,2]
[332484383,1721242242845,-500.0,0.00021868,2]
[332484384,1721242242855,-500.0,0.00021868,2]
[332484385,1721242242865,-14579.2575307,0.00021869,3]
[332484386,1721242242877,-14579.2575307,0.00021877,3]
[332484387,1721242242888,-14579.2575307,0.00021878,3]
[332484388,1721242242899,-1309.15370239,0.00021878,7]
[332484389,1721242242910,-151.0,0.00021879,2]
[332484390,1721242242922,-151.0,0.00021879,2]
[332484391,1721242242931,-184.28285,0.00021879,2]
[332484392,1721242242940,-184.28285,0.00021879,2]
[332484393,1721242242949,-151.0,0.00021879,2]
[332484394,1721242242958,-254.128149,0.00021879,2]
[332484395,1721242242967,-1169.226776,0.00021879,2]
[332484396,1721242242978,-1169.226776,0.00021879,2]
[332484397,1721242242988,-151.0,0.00021879,2]
[332484398,1721242242997,-275.600216,0.00021879,2]
[332484399,1721242243007,-275.600216,0.00021879,2]
[332484400,1721242243019,-151.0,0.00021879,2]
[332484401,1721242243030,-152.32735,0.00021879,2]
[332484402,1721242243041,-1472.82742,0.00021879,2]
[332484403,1721242243053,-1472.82742,0.00021879,2]
[332484404,1721242243063,-14579.2575307,0.00021879,3]
[332484405,1721242243072,-151.0,0.0002188,2]
[332484406,1721242243082,-151.0,0.0002188,2]
[332484407,1721242243093,-271.456526,0.0002188,2]
[332484408,1721242243104,-151.0,0.0002188,2]
[332484409,1721242243113,-3969.109396,0.0002188,2]
[332484411,1721242243122,-3969.109396,0.0002188,2]
[332484413,1721242243131,-275.600216,0.0002188,2]
[332484414,1721242243141,-275.600216,0.0002188,2]
[332484416,1721242243150,-151.0,0.0002188,2]
[332484417,1721242243160,-1472.82742,0.0002188,2]
[332484418,1721242243169,-1472.82742,0.0002188,2]
[332484419,1721242243179,-151.0,0.00021887,2]
[332484420,1721242243189,-151.0,0.00021887,2]
[332484421,1721242243200,-151.0,0.00021887,2]
[332484422,1721242243209,-151.0,0.00021887,2]
[332484423,1721242243219,-239.551692,0.00021887,2]
[332484424,1721242243229,-151.0,0.00021887,2]
[332484425,1721242243239,-198.315839,0.00021887,2]
[332484426,1721242243249,-198.446827,0.00021887,2]
[332484427,1721242243260,-198.446827,0.00021887,2]
[332484428,1721242243271,-151.0,0.00021887,2]
[332484429,1721242243282,-151.0,0.00021887,2]
[332484430,1721242243293,-151.0,0.00021887,2]
[332484431,1721242243302,-151.0,0.00021887,2]
[332484432,1721242243313,-151.0,0.00021887,2]
[332484433,1721242243323,-151.0,0.00021887,2]
[332484436,1721242243332,-151.0,0.00021887,2]
[332484438,1721242243346,-151.0,0.00021887,2]
[332484440,1721242243356,-151.0,0.00021887,2]
[332484442,1721242243366,-400.327752,0.00021887,2]
[332484444,1721242243376,-400.327752,0.00021887,2]
[332484446,1721242243387,-400.327752,0.00021887,2]
[332484449,1721242243396,-3969.109396,0.00021887,2]
[332484452,1721242243406,-3969.109396,0.00021887,2]
[332484454,1721242243415,-3969.109396,0.00021887,2]
[332484458,1721242243429,-3969.109396,0.00021887,2]
[332484461,1721242243439,-3969.109396,0.00021887,2]
[332484465,1721242243450,-3969.109396,0.00021887,2]
[332484467,1721242243459,-151.0,0.00021887,2]
[332484469,1721242243470,-151.0,0.00021887,2]
[332484471,1721242243480,-151.0,0.00021887,2]
[332484473,1721242243489,-151.0,0.00021887,2]
[332484474,1721242243499,-151.0,0.00021887,2]
[332484475,1721242243509,-151.0,0.00021887,2]
[332484476,1721242243519,-184.28285,0.00021887,2]
[332484477,1721242243530,-184.28285,0.00021887,2]
[332484478,1721242243540,-184.28285,0.00021887,2]
[332484479,1721242243549,-184.28285,0.00021887,2]
[332484480,1721242243562,-184.28285,0.00021887,2]
[332484481,1721242243574,-184.28285,0.00021887,2]
[332484482,1721242243584,-151.0,0.00021887,2]
[332484483,1721242243595,-151.0,0.00021887,2]
[332484484,1721242243605,-151.0,0.00021887,2]
[332484485,1721242243615,-1169.226776,0.00021887,2]
[332484486,1721242243625,-1169.226776,0.00021887,2]
[332484487,1721242243636,-1169.226776,0.00021887,2]
[332484488,1721242243647,-1169.226776,0.00021887,2]
[332484489,1721242243656,-1169.226776,0.00021887,2]
[332484490,1721242243667,-151.0,0.00021887,2]
[332484491,1721242243679,-1169.226776,0.00021887,2]
[332484492,1721242243690,-151.0,0.00021887,2]
[332484493,1721242243701,-151.0,0.00021887,2]
[332484494,1721242243711,-275.600216,0.00021887,2]
[332484495,1721242243723,-275.600216,0.00021887,2]
[332484496,1721242243734,-275.600216,0.00021887,2]
[332484497,1721242243745,-275.600214,0.00021887,2]
[332484498,1721242243758,-151.0,0.00021887,2]
[332484499,1721242243768,-1472.82742,0.00021887,2]
[332484500,1721242243778,-1472.827424,0.00021887,2]
[332484501,1721242243788,-151.0,0.00021889,2]
[332484502,1721242243797,-267.512321,0.00021889,2]
[332484503,1721242243807,-151.0,0.00021889,2]
[332484504,1721242243817,-151.0,0.00021889,2]
[332484505,1721242243828,-153.552436,0.00021889,2]
[332484506,1721242243839,-198.446827,0.00021889,2]
[332484507,1721242243850,-198.446827,0.00021889,2]
[332484508,1721242243860,-198.446827,0.00021889,2]
[332484509,1721242243870,-198.446827,0.00021889,2]
[332484510,1721242243880,-198.446827,0.00021889,2]
[332484511,1721242243891,-198.446827,0.00021889,2]
[332484512,1721242243902,-151.0,0.00021889,2]
[332484513,1721242243912,-151.0,0.00021889,2]
[332484514,1721242243922,-230.747778,0.00021889,2]
[332484515,1721242243934,-151.0,0.00021889,2]
[332484516,1721242243945,-151.0,0.00021889,2]
[332484517,1721242243956,-151.0,0.00021889,2]
[332484518,1721242243966,-151.0,0.00021889,2]
[332484519,1721242243976,-400.327752,0.00021889,2]
[332484520,1721242243987,-400.327752,0.00021889,2]
[332484521,1721242243998,-400.327745,0.00021889,2]
[332484522,1721242244008,-3969.109396,0.00021889,2]
[332484523,1721242244019,-3969.109396,0.00021889,2]
[332484524,1721242244030,-3969.109396,0.00021889,2]
[332484525,1721242244042,-3969.109396,0.00021889,2]
[332484526,1721242244054,-3969.109396,0.00021889,2]
[332484527,1721242244064,-3969.109402,0.00021889,2]
[332484528,1721242244076,-151.0,0.00021889,2]
[332484529,1721242244087,-208.567694,0.00021889,2]
[332484530,1721242244098,-151.0,0.00021889,2]
[332484531,1721242244109,-151.0,0.00021889,2]
[332484532,1721242244119,-151.0,0.00021889,2]
[332484533,1721242244131,-184.28285,0.00021889,2]
[332484534,1721242244143,-184.28285,0.00021889,2]
[332484535,1721242244155,-184.28285,0.00021889,2]
[332484536,1721242244166,-184.28285,0.00021889,2]
[332484537,1721242244177,-184.28285,0.00021889,2]
[332484538,1721242244187,-184.282857,0.00021889,2]
[332484539,1721242244196,-151.0,0.00021889,2]
[332484540,1721242244206,-151.0,0.00021889,2]
[332484541,1721242244215,-151.0,0.00021889,2]
[332484542,1721242244225,-1169.226776,0.00021889,2]
[332484543,1721242244235,-1169.226776,0.00021889,2]
[332484544,1721242244244,-1169.226776,0.00021889,2]
[332484545,1721242244254,-1169.226784,0.00021889,2]
[332484546,1721242244264,-151.0,0.00021889,2]
[332484547,1721242244273,-151.0,0.00021889,2]
[332484548,1721242244283,-198.446827,0.0002189,2]
[332484549,1721242244292,-198.446827,0.0002189,2]
[332484550,1721242244301,-198.446827,0.0002189,2]
[332484551,1721242244311,-198.446827,0.0002189,2]
[332484552,1721242244320,-151.0,0.0002189,2]
[332484553,1721242244330,-14579.2575307,0.00021897,3]
[332484554,1721242244341,-198.446827,0.00021897,2]
[332484555,1721242244352,-198.446827,0.00021897,2]
[332484556,1721242244362,-198.446827,0.00021897,2]
[332484557,1721242244371,-198.446827,0.00021897,2]
[332484558,1721242244381,-198.446827,0.00021897,2]
[332484559,1721242244390,-198.446827,0.00021897,2]
[332484560,1721242244400,-198.446827,0.00021897,2]
[332484561,1721242244409,-198.446833,0.00021897,2]
[332484562,1721242244418,-374.0,0.000219,2]
[332484563,1721242244431,-1500.0,0.000219,2]
[332484564,1721242244441,-1500.0,0.000219,2]
[332484565,1721242244451,-1402.82,0.000219,2]
[332484566,1721242244460,-1500.0,0.000219,2]
[332484567,1721242244469,-104983.64442671,0.00021905,5]
[332484568,1721242244478,-29158.5150614,0.00021906,3]
[332484569,1721242244487,-24649.16505104,0.00021906,3]
[332484570,1721242244536,-499.78027732,0.00021906,3]
[332484571,1721242244716,-5640.78324846,0.00021906,3]
[332484619,1721242707341,518.66166355,9.999e-05,2]
[332484620,1721242754900,518.66166355,0.0001212,2]
[332484621,1721242793832,158.03517633,0.00014691,2]
[332484645,1721243110603,1637.92525676,9.999e-05,2]
[332484648,1721243193022,2248.51879704,0.0001212,2]
[332484649,1721243209467,870.26,0.00010959,2]
[332484650,1721243216351,391.91633005,0.0001212,2]
[332484651,1721243237547,566.82686133,9.999e-05,2]
[332484652,1721243268789,1058.81410225,9.999e-05,2]
[332484653,1721243278557,322.54217679,0.000151,2]
[332484654,1721243281567,257.04469015,0.0001212,2]
[332484655,1721243323008,154.85288975,0.0001212,2]
[332484656,1721243347951,1854.50113432,0.00014691,2]
[332484658,1721243380411,560.89290989,0.00014691,2]
[332484659,1721243397992,-250.0,0.00015888,2]
[332484660,1721243398022,-250.0,0.00015931,2]
[332484661,1721243398051,-325.10506707,0.00015942,2]
[332484662,1721243398085,-825.10506707,0.00015942,2]
[332484663,1721243398117,-489.17740735,0.00015942,2]
[332484746,1721243437855,-5354.37474428,0.00015942,2]
[332484747,1721243437866,-250.0,0.00015975,2]
[332484748,1721243437877,-154.83742071,0.00016,2]
[332484749,1721243437887,-250.0,0.00016018,2]
[332484750,1721243437896,-250.0,0.00016062,2]
[332484751,1721243437907,-250.0,0.00016106,2]
[332484753,1721243437918,-250.0,0.00016149,2]
[332484755,1721243437930,-250.0,0.00016193,2]
[332484756,1721243437940,-250.0,0.00016236,2]
[332484757,1721243437950,-250.0,0.0001628,2]
[332484759,1721243437960,-155.75413898,0.00016322,2]
[332484761,1721243437969,-250.0,0.00016323,2]
[332484763,1721243437978,-250.0,0.00016367,2]
[332484765,1721243437988,-250.0,0.00016411,2]
[332484768,1721243437999,-250.0,0.00016454,2]
[332484770,1721243438008,-250.0,0.00016498,2]
[332484772,1721243438019,-300.0,0.00016527,2]
[332484774,1721243438028,-300.0,0.00016527,2]
[332484775,1721243438038,-1006.43375615,0.00016528,2]
[332484777,1721243438048,-250.0,0.00016541,2]
[332484779,1721243438058,-493.2280173,0.00016584,2]
[332484781,1721243438068,-250.0,0.00016585,2]
[332484783,1721243438079,-11485.37215258,0.00016625,2]
[332484792,1721243439921,-13414.62784742,0.00016625,2]
[332484794,1721243439931,-1637.92525676,0.00016627,2]
[332484796,1721243439941,-250.0,0.00016628,2]
[332484798,1721243439951,-250.0,0.00016672,2]
[332484800,1721243439961,-250.0,0.00016715,2]
[332484801,1721243439971,-3795.9058464,0.00017302,2]
[332484803,1721243439981,-1006.43375611,0.00017938,2]
[332484804,1721243439990,-30000.0,0.00018081,2]
[332484805,1721243439999,-319.057056,0.00018609,2]
[332484806,1721243440009,-2122.47397933,0.00019346,2]
[332484807,1721243440018,-1006.43375611,0.00019347,2]
[332484808,1721243440027,-159.8885354,0.00019805,2]
[332484809,1721243440037,-255.39549243,0.00019806,2]
[332484810,1721243440047,-182.32246841,0.00020316,2]
[332484811,1721243440057,-251.432,0.00020517,2]
[332484812,1721243440066,-1006.43375611,0.00020757,2]
[332484813,1721243440075,-320.70573166,0.00021095,2]
[332484814,1721243440084,-154.79103211,0.00021095,2]
[332484815,1721243440094,-407.41997679,0.00021095,2]
[332484816,1721243440103,-443.657596,0.00021096,2]
[332484817,1721243440113,-3000.0,0.000218,2]
[332484818,1721243440122,-3000.0,0.0002181,2]
[332484819,1721243440131,-277.23392603,0.00021815,2]
[332484820,1721243440140,-30000.00000001,0.00021816,3]
[332484821,1721243440150,-3000.0,0.0002182,2]
[332484822,1721243440160,-3000.0,0.0002183,2]
[332484823,1721243440169,-4241.834524,0.0002184,2]
[332484824,1721243440179,-14184.9325785,0.0002189,3]
[332484825,1721243440188,-204.43113703,0.00021899,2]
[332484826,1721243440198,-500.0,0.00021899,2]
[332484827,1721243440208,-500.0,0.00021899,2]
[332484828,1721243440217,-229.30447432,0.00021899,2]
[332484829,1721243440227,-478.4050389,0.00021899,2]
[332484830,1721243440236,-338.8959211,0.00021899,2]
[332484831,1721243440245,-500.0,0.00021899,2]
[332484832,1721243440255,-500.0,0.00021899,2]
[332484833,1721243440264,-500.0,0.00021899,2]
[332484834,1721243440273,-500.0,0.00021899,2]
[332484835,1721243440283,-500.0,0.00021899,2]
[332484836,1721243440292,-500.0,0.00021899,2]
[332484837,1721243440301,-500.0,0.00021899,2]
[332484838,1721243440311,-500.0,0.00021899,2]
[332484839,1721243440320,-3102.81,0.000219,2]
[332484840,1721243440330,-374.0,0.000219,2]
[332484841,1721243440339,-150.112233,0.000219,2]
[332484842,1721243440349,-150.112233,0.000219,3]
[332484843,1721243440358,-150.112233,0.000219,4]
[332484844,1721243440368,-181221.1091919,0.000219,2]
[332484845,1721243440377,-151.0,0.000219,2]
[332484846,1721243440387,-151.0,0.000219,2]
[332484847,1721243440396,-151.0,0.000219,2]
[332484848,1721243440405,-151.0,0.000219,2]
[332484849,1721243440414,-239.551692,0.000219,2]
[332484850,1721243440424,-198.315839,0.000219,2]
[332484851,1721243440433,-56739.7303142,0.00021906,3]
[332484852,1721243440443,-6992.96242863,0.00021906,2]
[332484853,1721243440453,-151.0,0.00021906,2]
[332484854,1721243440464,-151.0,0.00021906,2]
[332484855,1721243440474,-151.0,0.00021906,2]
[332484856,1721243440483,-151.0,0.00021906,2]
[332484857,1721243440493,-205.996827,0.00021906,2]
[332484858,1721243440504,-205.996827,0.00021906,2]
[332484859,1721243440515,-151.0,0.00021906,2]
[332484860,1721243440525,-151.0,0.00021906,2]
[332484861,1721243440534,-151.0,0.00021906,2]
[332484862,1721243440544,-267.512321,0.00021906,2]
[332484863,1721243440554,-104983.64442671,0.00021907,5]
[332484864,1721243440565,-7286.64837187,0.00021907,5]
[332484865,1721243440579,-2149.31548844,0.00021907,5]
[332484900,1721243443203,-155.57426598,0.00019706,2]
[332484901,1721243443212,-7665.50328541,0.00021907,5]
[332484902,1721243443224,-16515.50630136,0.00021907,5]
[332484903,1721243443233,-42554.7977356,0.00021907,3]
[332484904,1721243443242,-48857.82201691,0.00021907,3]
[332484905,1721243443253,-2003.97724715,0.00021907,3]
[332484906,1721243443264,-1408.49997,0.00021907,3]
[332484907,1721243443275,-5640.78324846,0.00021907,3]
[332484932,1721243446444,-275.94151144,0.00019807,2]
[332484933,1721243446453,-151.0,0.000219,2]
[332484934,1721243446462,-151.0,0.00021906,2]
[332484935,1721243446473,-41383.44556728,0.00021907,3]
[332484936,1721243446482,-151.0,0.00021907,2]
[332484937,1721243446492,-151.0,0.00021907,2]
[332484938,1721243446502,-151.0,0.00021907,2]
[332484939,1721243446511,-151.0,0.00021907,2]
[332484940,1721243446520,-151.0,0.00021907,2]
[332484941,1721243446530,-151.0,0.00021907,2]
[332484942,1721243446539,-205.996827,0.00021907,2]
[332484943,1721243446548,-205.996827,0.00021907,2]
[332484944,1721243446558,-205.996827,0.00021907,2]
[332484945,1721243446568,-205.996827,0.00021907,2]
[332484946,1721243446576,-151.0,0.00021907,2]
[332484947,1721243446586,-151.0,0.00021907,2]
[332484948,1721243446596,-177.834766,0.00021907,2]
[332484949,1721243446606,-151.0,0.00021907,2]
[332484950,1721243446615,-151.0,0.00021907,2]
[332484951,1721243446626,-151.0,0.00021907,2]
[332484952,1721243446635,-151.0,0.00021907,2]
[332484953,1721243446644,-151.0,0.00021907,2]
[332484954,1721243446654,-151.0,0.00021907,2]
[332484955,1721243446663,-151.0,0.00021907,2]
[332484956,1721243446674,-165.854565,0.00021907,2]
[332484957,1721243446683,-165.854565,0.00021907,2]
[332484958,1721243446692,-935.381421,0.00021907,2]
[332484959,1721243446701,-151.0,0.00021907,2]
[332484960,1721243446711,-935.381421,0.00021907,2]
[332484961,1721243446720,-400.327752,0.00021907,2]
[332484962,1721243446729,-400.327752,0.00021907,2]
[332484963,1721243446739,-626.761323,0.00021907,2]
[332484964,1721243446749,-626.761323,0.00021907,2]
[332484965,1721243446762,-220.480173,0.00021907,2]
[332484966,1721243446772,-220.480173,0.00021907,2]
[332484967,1721243446781,-3572.198457,0.00021907,2]
[332484968,1721243446792,-151.0,0.00021907,2]
[332484969,1721243446802,-3572.198457,0.00021907,2]
[332484970,1721243446957,-160.881812,0.00021907,2]
[332484971,1721243446968,-151.0,0.00021907,2]
[332484972,1721243446978,-151.0,0.00021907,2]
[332484973,1721243446987,-151.0,0.00021907,2]
[332484974,1721243446997,-151.0,0.00021907,2]
[332484975,1721243447006,-151.0,0.00021907,2]
[332484976,1721243447016,-153.552436,0.00021907,2]
[332484977,1721243447026,-159.012451,0.00021907,2]
[332484978,1721243447036,-230.747778,0.00021916,2]
[332484979,1721243447046,-205.996827,0.00021916,2]
[332484980,1721243447055,-205.996827,0.00021916,2]
[332484981,1721243447064,-205.996827,0.00021916,2]
[332484982,1721243447074,-205.996827,0.00021916,2]
[332484983,1721243447083,-151.0,0.00021916,2]
[332484984,1721243447092,-177.834766,0.00021916,2]
[332484985,1721243447101,-151.0,0.00021916,2]
[332484986,1721243447110,-151.0,0.00021916,2]
[332484987,1721243447120,-151.0,0.00021916,2]
[332484988,1721243447131,-151.0,0.00021916,2]
[332484989,1721243447140,-151.0,0.00021916,2]
[332484990,1721243447150,-151.0,0.00021916,2]
[332484991,1721243447159,-165.854565,0.00021916,2]
[332484992,1721243447169,-165.854565,0.00021916,2]
[332484993,1721243447179,-935.381421,0.00021916,2]
[332484994,1721243447188,-151.0,0.00021916,2]
[332484995,1721243447199,-935.381421,0.00021916,2]
[332484996,1721243447209,-400.327752,0.00021916,2]
[332484997,1721243447218,-400.327752,0.00021916,2]
[332484998,1721243447228,-626.761323,0.00021916,2]
[332484999,1721243447237,-626.761323,0.00021916,2]
[332485000,1721243447248,-220.480173,0.00021916,2]
[332485001,1721243447258,-220.480173,0.00021916,2]
[332485002,1721243447267,-3572.198457,0.00021916,2]
[332485003,1721243447276,-151.0,0.00021916,2]
[332485004,1721243447285,-3572.198457,0.00021916,2]
[332485005,1721243447294,-151.0,0.00021916,2]
[332485006,1721243447304,-151.0,0.00021916,2]
[332485007,1721243447313,-151.0,0.00021916,2]
[332485008,1721243447322,-151.0,0.00021916,2]
[332485009,1721243447331,-190.69909629,0.00021917,2]
[332485010,1721243447340,-500.0,0.00021917,2]
[332485011,1721243447349,-505.48716138,0.00021917,2]
[332485012,1721243447358,-500.0,0.00021917,2]
[332485013,1721243447368,-500.0,0.00021917,2]
[332485014,1721243447377,-500.0,0.00021917,2]
[332485015,1721243447387,-500.0,0.00021917,2]
[332485016,1721243447396,-500.0,0.00021917,2]
[332485017,1721243447407,-647.6477685,0.00021917,2]
[332485018,1721243447416,-500.0,0.00021917,2]
[332485019,1721243447429,-500.0,0.00021917,2]
[332485020,1721243447438,-500.0,0.00021917,2]
[332485021,1721243447448,-500.0,0.00021917,2]
[332485022,1721243447458,-522.2007787,0.00021917,2]
[332485023,1721243447471,-500.0,0.00021917,2]
[332485024,1721243447481,-500.0,0.00021917,2]
[332485025,1721243447492,-500.0,0.00021917,2]
[332485026,1721243447501,-500.0,0.00021917,2]
[332485027,1721243447514,-500.0,0.00021917,2]
[332485028,1721243447524,-500.0,0.00021917,2]
[332485029,1721243447536,-502.11441491,0.00021917,2]
[332485030,1721243447546,-500.0,0.00021917,2]
[332485031,1721243447556,-500.0,0.00021917,2]
[332485032,1721243447568,-500.0,0.00021917,2]
[332485033,1721243447579,-500.0,0.00021917,2]
[332485034,1721243447591,-507.288803,0.00021917,2]
[332485035,1721243447602,-500.0,0.00021917,2]
[332485036,1721243447613,-500.0,0.00021917,2]
[332485037,1721243447625,-500.0,0.00021917,2]